[Event "Late-Titled-Tuesday-Blitz-October-24-2023"]
[Site "Chess.com"]
[Date "2023.10.24"]
[Round "3"]
[White "KafkaesqueKnight"]
[Black "SanchezKelvin"]
[Result "0-1"]
[WhiteElo "2325"]
[BlackElo "2556"]
[TimeControl "180+1"]
[EndTime "14:28:16 PDT"]
[Termination "SanchezKelvin won by resignation"]

1. e4 {[%clk 0:03:00.9]} 1... e5 {[%clk 0:02:55]} 2. Nf3 {[%clk 0:02:59.3]} 2...
Nc6 {[%clk 0:02:42.1]} 3. Bc4 {[%clk 0:02:59.7]} 3... Bc5 {[%clk 0:02:41.4]} 4.
O-O {[%clk 0:02:59.6]} 4... d6 {[%clk 0:02:38.9]} 5. c3 {[%clk 0:02:59.7]} 5...
Nf6 {[%clk 0:02:38]} 6. d4 {[%clk 0:02:59.2]} 6... Bb6 {[%clk 0:02:38.5]} 7.
dxe5 {[%clk 0:02:56.8]} 7... Nxe5 {[%clk 0:02:37.7]} 8. Nxe5 {[%clk 0:02:55.8]}
8... dxe5 {[%clk 0:02:37.9]} 9. Qxd8+ {[%clk 0:02:56.5]} 9... Kxd8 {[%clk
0:02:38.4]} 10. Bxf7 {[%clk 0:02:54.8]} 10... Rf8 {[%clk 0:02:37.7]} 11. Bb3
{[%clk 0:02:30.2]} 11... Nxe4 {[%clk 0:02:35.1]} 12. Be3 {[%clk 0:02:27.5]}
12... Bxe3 {[%clk 0:02:32.2]} 13. fxe3 {[%clk 0:02:28.4]} 13... Rxf1+ {[%clk
0:02:31.6]} 14. Kxf1 {[%clk 0:02:29.3]} 14... Ke7 {[%clk 0:02:28.4]} 15. Bc2
{[%clk 0:02:26.1]} 15... Bf5 {[%clk 0:02:24.4]} 16. Ke1 {[%clk 0:02:22.8]} 16...
Rd8 {[%clk 0:02:20.9]} 17. Na3 {[%clk 0:02:03.5]} 17... Nd6 {[%clk 0:02:10.4]}
18. Bxf5 {[%clk 0:01:55.4]} 18... Nxf5 {[%clk 0:02:08]} 19. Ke2 {[%clk
0:01:55.4]} 19... e4 {[%clk 0:02:05.2]} 20. Nc2 {[%clk 0:01:52]} 20... Nh4
{[%clk 0:01:55.8]} 21. Ne1 {[%clk 0:01:41.8]} 21... c5 {[%clk 0:01:49.5]} 22.
Rd1 {[%clk 0:01:41.2]} 22... Rxd1 {[%clk 0:01:48.2]} 23. Kxd1 {[%clk 0:01:42.1]}
23... Ke6 {[%clk 0:01:47.2]} 24. g3 {[%clk 0:01:39.4]} 24... Ng6 {[%clk
0:01:44.4]} 25. Ng2 {[%clk 0:01:34.8]} 25... Ne5 {[%clk 0:01:43.4]} 26. Nf4+
{[%clk 0:01:34.2]} 26... Kf5 {[%clk 0:01:40.3]} 27. Ke2 {[%clk 0:01:27.7]} 27...
g5 {[%clk 0:01:37.3]} 28. Nd5 {[%clk 0:01:21.9]} 28... Nf3 {[%clk 0:01:33.1]}
29. h3 {[%clk 0:00:56.8]} 29... Ng1+ {[%clk 0:01:32.6]} 30. Kf2 {[%clk
0:00:55.7]} 30... Nxh3+ {[%clk 0:01:33.5]} 31. Kg2 {[%clk 0:00:55.5]} 31... g4
{[%clk 0:01:33.8]} 32. Ne7+ {[%clk 0:00:52.6]} 32... Ke6 {[%clk 0:01:26.3]} 33.
Nc8 {[%clk 0:00:51.5]} 33... a6 {[%clk 0:01:24]} 34. Nb6 {[%clk 0:00:51.7]}
34... Ng5 {[%clk 0:01:23.2]} 35. a4 {[%clk 0:00:48.6]} 35... Nf7 {[%clk
0:01:21.2]} 36. a5 {[%clk 0:00:45.7]} 36... Ne5 {[%clk 0:01:20.4]} 37. Na4
{[%clk 0:00:41]} 37... Kd6 {[%clk 0:01:15.4]} 38. b3 {[%clk 0:00:41.2]} 38...
Nc6 {[%clk 0:01:12.5]} 0-1

[Event "Late-Titled-Tuesday-Blitz-October-24-2023"]
[Site "Chess.com"]
[Date "2023.10.24"]
[Round "3"]
[White "Maluco_do_Natal_00"]
[Black "PapaieDudu"]
[Result "0-1"]
[WhiteElo "2024"]
[BlackElo "2340"]
[TimeControl "180+1"]
[EndTime "14:28:28 PDT"]
[Termination "PapaieDudu won on time"]

1. e4 {[%clk 0:02:54.8]} 1... c5 {[%clk 0:02:59.5]} 2. Nf3 {[%clk 0:02:54.8]}
2... d6 {[%clk 0:02:59.7]} 3. d4 {[%clk 0:02:55.4]} 3... cxd4 {[%clk 0:03:00.6]}
4. Nxd4 {[%clk 0:02:56.2]} 4... Nf6 {[%clk 0:02:59.7]} 5. Nc3 {[%clk 0:02:56.1]}
5... a6 {[%clk 0:02:59.3]} 6. Be3 {[%clk 0:02:55.9]} 6... b5 {[%clk 0:02:57.8]}
7. a3 {[%clk 0:02:55.5]} 7... Bb7 {[%clk 0:02:57.4]} 8. f3 {[%clk 0:02:55.6]}
8... Nbd7 {[%clk 0:02:57.1]} 9. Qd2 {[%clk 0:02:56]} 9... e6 {[%clk 0:02:57]}
10. g4 {[%clk 0:02:55.4]} 10... Nb6 {[%clk 0:02:56.4]} 11. g5 {[%clk 0:02:51.8]}
11... Nfd7 {[%clk 0:02:56.3]} 12. h4 {[%clk 0:02:46.2]} 12... Rc8 {[%clk
0:02:50.2]} 13. h5 {[%clk 0:02:45.4]} 13... Ne5 {[%clk 0:02:42.2]} 14. b3 {[%clk
0:02:11.4]} 14... d5 {[%clk 0:02:31.3]} 15. exd5 {[%clk 0:01:41.3]} 15... b4
{[%clk 0:02:31.1]} 16. Nce2 {[%clk 0:01:05.3]} 16... Nxd5 {[%clk 0:02:30.4]} 17.
Bg2 {[%clk 0:00:37.1]} 17... bxa3 {[%clk 0:02:23.6]} 18. c3 {[%clk 0:00:20.7]}
18... Qa5 {[%clk 0:01:10.5]} 19. O-O {[%clk 0:00:07.3]} 19... Nxc3 {[%clk
0:01:08.6]} 20. Nxc3 {[%clk 0:00:06]} 20... Rxc3 {[%clk 0:01:04.1]} 21. Rfc1
{[%clk 0:00:01.8]} 21... Bb4 {[%clk 0:01:03]} 22. Qf2 {[%clk 0:00:01.2]} 22...
Nd3 {[%clk 0:00:57.5]} 0-1

[Event "Late-Titled-Tuesday-Blitz-October-24-2023"]
[Site "Chess.com"]
[Date "2023.10.24"]
[Round "3"]
[White "Alex_Sahakyan2006"]
[Black "Duhless"]
[Result "0-1"]
[WhiteElo "2738"]
[BlackElo "3113"]
[TimeControl "180+1"]
[EndTime "14:28:46 PDT"]
[Termination "Duhless won on time"]

1. d4 {[%clk 0:03:00.9]} 1... Nf6 {[%clk 0:02:58.3]} 2. c4 {[%clk 0:02:53.9]}
2... e6 {[%clk 0:02:58.1]} 3. Nf3 {[%clk 0:02:53.4]} 3... Bb4+ {[%clk
0:02:57.9]} 4. Bd2 {[%clk 0:02:51.4]} 4... Qe7 {[%clk 0:02:56.9]} 5. g3 {[%clk
0:02:49]} 5... Bxd2+ {[%clk 0:02:54.3]} 6. Qxd2 {[%clk 0:02:48]} 6... Nc6 {[%clk
0:02:52.5]} 7. Nc3 {[%clk 0:02:43.9]} 7... d5 {[%clk 0:02:51.6]} 8. cxd5 {[%clk
0:02:39]} 8... exd5 {[%clk 0:02:50.8]} 9. Bg2 {[%clk 0:02:39.2]} 9... O-O {[%clk
0:02:51.3]} 10. O-O {[%clk 0:02:38.9]} 10... Re8 {[%clk 0:02:45.7]} 11. e3
{[%clk 0:02:36.4]} 11... Bf5 {[%clk 0:02:42.2]} 12. Qd1 {[%clk 0:02:35]} 12...
Nd8 {[%clk 0:02:33.7]} 13. Ne5 {[%clk 0:02:31.7]} 13... c6 {[%clk 0:02:33.7]}
14. a3 {[%clk 0:02:17.4]} 14... Nd7 {[%clk 0:02:31.2]} 15. Nd3 {[%clk
0:02:07.5]} 15... Nb6 {[%clk 0:02:28.5]} 16. Nc5 {[%clk 0:01:52.6]} 16... Ne6
{[%clk 0:02:26.8]} 17. N3a4 {[%clk 0:01:32.4]} 17... Nxa4 {[%clk 0:02:16.5]} 18.
Nxa4 {[%clk 0:01:31.3]} 18... Ng5 {[%clk 0:02:07.8]} 19. h4 {[%clk 0:01:24.9]}
19... Ne4 {[%clk 0:02:06.2]} 20. Rc1 {[%clk 0:01:23.4]} 20... Nd6 {[%clk
0:02:00]} 21. Nc5 {[%clk 0:01:17.5]} 21... Kh8 {[%clk 0:01:58.2]} 22. Qf3 {[%clk
0:01:13.4]} 22... a5 {[%clk 0:01:55.3]} 23. Rfe1 {[%clk 0:01:07.1]} 23... a4
{[%clk 0:01:47.5]} 24. Qd1 {[%clk 0:00:59.9]} 24... b5 {[%clk 0:01:44]} 25. Qf3
{[%clk 0:00:46.4]} 25... h6 {[%clk 0:01:37.9]} 26. Qf4 {[%clk 0:00:45.2]} 26...
g5 {[%clk 0:01:31.3]} 27. hxg5 {[%clk 0:00:43.4]} 27... hxg5 {[%clk 0:01:32.2]}
28. Qf3 {[%clk 0:00:40.1]} 28... Kg7 {[%clk 0:01:31.6]} 29. g4 {[%clk
0:00:37.9]} 29... Bg6 {[%clk 0:01:30.8]} 30. Qg3 {[%clk 0:00:38.2]} 30... Nc4
{[%clk 0:01:28.5]} 31. e4 {[%clk 0:00:36.6]} 31... dxe4 {[%clk 0:01:28.4]} 32.
Nxe4 {[%clk 0:00:33.9]} 32... Rad8 {[%clk 0:01:24.8]} 33. Qc3 {[%clk 0:00:28.8]}
33... Bxe4 {[%clk 0:01:22]} 34. Bxe4 {[%clk 0:00:14.1]} 34... Qf6 {[%clk
0:01:21.5]} 35. Kg2 {[%clk 0:00:13.4]} 35... Rxd4 {[%clk 0:01:18.5]} 36. Bf5
{[%clk 0:00:04.9]} 36... Rxe1 {[%clk 0:01:13]} 37. Rxe1 {[%clk 0:00:05.1]} 37...
Nd6 {[%clk 0:01:13.6]} 0-1

[Event "Late-Titled-Tuesday-Blitz-October-24-2023"]
[Site "Chess.com"]
[Date "2023.10.24"]
[Round "3"]
[White "Road2GM3000"]
[Black "NowInChess"]
[Result "0-1"]
[WhiteElo "2361"]
[BlackElo "2192"]
[TimeControl "180+1"]
[EndTime "14:28:46 PDT"]
[Termination "NowInChess won by checkmate"]

1. d4 {[%clk 0:02:49.5]} 1... Nf6 {[%clk 0:02:59.6]} 2. c4 {[%clk 0:02:49.9]}
2... c5 {[%clk 0:02:59.3]} 3. d5 {[%clk 0:02:50.4]} 3... b5 {[%clk 0:02:59.6]}
4. cxb5 {[%clk 0:02:50.7]} 4... a6 {[%clk 0:03:00.3]} 5. bxa6 {[%clk 0:02:51]}
5... g6 {[%clk 0:02:57.1]} 6. Nc3 {[%clk 0:02:51.9]} 6... Bg7 {[%clk 0:02:57.1]}
7. g3 {[%clk 0:02:52.7]} 7... O-O {[%clk 0:02:54.6]} 8. e4 {[%clk 0:02:53.1]}
8... d6 {[%clk 0:02:44.6]} 9. Bg2 {[%clk 0:02:49.9]} 9... Bxa6 {[%clk
0:02:38.4]} 10. Nge2 {[%clk 0:02:50.4]} 10... Nbd7 {[%clk 0:02:25.3]} 11. O-O
{[%clk 0:02:50]} 11... Qa5 {[%clk 0:02:24.5]} 12. Bd2 {[%clk 0:02:47.8]} 12...
Qb6 {[%clk 0:02:24.1]} 13. Rb1 {[%clk 0:02:46.2]} 13... Bd3 {[%clk 0:02:14.9]}
14. Na4 {[%clk 0:02:40.5]} 14... Qb5 {[%clk 0:01:48]} 15. Nec3 {[%clk
0:02:39.8]} 15... Qb7 {[%clk 0:01:43.7]} 16. Bf4 {[%clk 0:02:40.1]} 16... Bxb1
{[%clk 0:01:40.3]} 17. Qxb1 {[%clk 0:02:40]} 17... Ng4 {[%clk 0:01:36.9]} 18. h3
{[%clk 0:02:37.5]} 18... Nge5 {[%clk 0:01:29.4]} 19. Bxe5 {[%clk 0:02:38.1]}
19... Nxe5 {[%clk 0:01:25.4]} 20. f4 {[%clk 0:02:38.8]} 20... Nc4 {[%clk
0:01:24.6]} 21. b3 {[%clk 0:02:39.3]} 21... Nd2 {[%clk 0:01:21.7]} 22. Qc2
{[%clk 0:02:37.3]} 22... Nxf1 {[%clk 0:01:21]} 23. Bxf1 {[%clk 0:02:38.2]} 23...
Bd4+ {[%clk 0:01:14.8]} 24. Kh2 {[%clk 0:02:37]} 24... e6 {[%clk 0:00:59.6]} 25.
dxe6 {[%clk 0:02:35.8]} 25... fxe6 {[%clk 0:00:59.9]} 26. Bc4 {[%clk 0:02:36]}
26... Rfe8 {[%clk 0:00:53.7]} 27. Nb5 {[%clk 0:02:25.5]} 27... d5 {[%clk
0:00:45.4]} 28. Nd6 {[%clk 0:02:25.1]} 28... Qd7 {[%clk 0:00:43.7]} 29. Nxe8
{[%clk 0:02:23.6]} 29... dxc4 {[%clk 0:00:43.7]} 30. Nb6 {[%clk 0:02:13.2]}
30... Qxe8 {[%clk 0:00:43.6]} 31. Nxa8 {[%clk 0:02:13.9]} 31... Qxa8 {[%clk
0:00:43.9]} 32. bxc4 {[%clk 0:02:09.3]} 32... Qa3 {[%clk 0:00:42]} 33. g4 {[%clk
0:01:56.2]} 33... Qe3 {[%clk 0:00:36.1]} 34. Qb1 {[%clk 0:01:43]} 34... Qxf4+
{[%clk 0:00:31]} 35. Kg2 {[%clk 0:01:43.7]} 35... Qf2+ {[%clk 0:00:28.7]} 36.
Kh1 {[%clk 0:01:43.9]} 36... Qb2 {[%clk 0:00:21.1]} 37. Qxb2 {[%clk 0:01:42.2]}
37... Bxb2 {[%clk 0:00:20.7]} 38. a4 {[%clk 0:01:41]} 38... Bc3 {[%clk
0:00:20.7]} 39. Kg2 {[%clk 0:01:39.2]} 39... g5 {[%clk 0:00:20.5]} 40. Kf3
{[%clk 0:01:35.6]} 40... Kg7 {[%clk 0:00:20.7]} 41. Ke2 {[%clk 0:01:33.1]} 41...
Kf6 {[%clk 0:00:19.4]} 42. Kd3 {[%clk 0:01:33.7]} 42... Bb4 {[%clk 0:00:19.3]}
43. Ke2 {[%clk 0:01:31.3]} 43... Ke5 {[%clk 0:00:19.6]} 44. Ke3 {[%clk
0:01:31.9]} 44... h6 {[%clk 0:00:18.6]} 45. Kd3 {[%clk 0:01:31.3]} 45... Kf4
{[%clk 0:00:18.4]} 46. e5 {[%clk 0:01:31.2]} 46... Kxe5 {[%clk 0:00:18.3]} 47.
Ke3 {[%clk 0:01:32.1]} 47... Ba5 {[%clk 0:00:15.7]} 48. Kd3 {[%clk 0:01:31.8]}
48... Kf4 {[%clk 0:00:15.8]} 49. Ke2 {[%clk 0:01:31.4]} 49... e5 {[%clk
0:00:15.4]} 50. Kd3 {[%clk 0:01:31.6]} 50... e4+ {[%clk 0:00:15.7]} 51. Ke2
{[%clk 0:01:32.4]} 51... e3 {[%clk 0:00:15.8]} 52. h4 {[%clk 0:01:32.4]} 52...
gxh4 {[%clk 0:00:15.3]} 53. g5 {[%clk 0:01:31.8]} 53... hxg5 {[%clk 0:00:14.9]}
54. Kf1 {[%clk 0:01:32.7]} 54... h3 {[%clk 0:00:14.9]} 55. Kg1 {[%clk
0:01:33.1]} 55... e2 {[%clk 0:00:14.1]} 56. Kh2 {[%clk 0:01:34]} 56... e1=Q
{[%clk 0:00:13.1]} 57. Kxh3 {[%clk 0:01:34.7]} 57... Qg3# {[%clk 0:00:13.3]} 0-1

[Event "Late-Titled-Tuesday-Blitz-October-24-2023"]
[Site "Chess.com"]
[Date "2023.10.24"]
[Round "3"]
[White "Thjop"]
[Black "Eloist"]
[Result "1-0"]
[WhiteElo "2637"]
[BlackElo "2444"]
[TimeControl "180+1"]
[EndTime "14:28:50 PDT"]
[Termination "Thjop won on time"]

1. e4 {[%clk 0:02:57.5]} 1... e6 {[%clk 0:03:00.2]} 2. d4 {[%clk 0:02:56.7]}
2... d5 {[%clk 0:03:00.6]} 3. Nd2 {[%clk 0:02:57.6]} 3... c5 {[%clk 0:02:59.9]}
4. Ngf3 {[%clk 0:02:57.5]} 4... cxd4 {[%clk 0:02:57.3]} 5. Nxd4 {[%clk
0:02:58.4]} 5... Nc6 {[%clk 0:02:57.4]} 6. Bb5 {[%clk 0:02:58.2]} 6... Bd7
{[%clk 0:02:57.4]} 7. Nxc6 {[%clk 0:02:58.5]} 7... bxc6 {[%clk 0:02:52.8]} 8.
Bd3 {[%clk 0:02:58.3]} 8... Bd6 {[%clk 0:02:51.4]} 9. Qe2 {[%clk 0:02:58.5]}
9... Qc7 {[%clk 0:02:47.2]} 10. Nf3 {[%clk 0:02:57.8]} 10... e5 {[%clk
0:02:33.6]} 11. O-O {[%clk 0:02:52.1]} 11... Ne7 {[%clk 0:02:27.3]} 12. Re1
{[%clk 0:02:52.2]} 12... dxe4 {[%clk 0:02:17.6]} 13. Qxe4 {[%clk 0:02:39.2]}
13... f5 {[%clk 0:02:12.4]} 14. Qh4 {[%clk 0:02:33]} 14... e4 {[%clk 0:02:10.9]}
15. Bg5 {[%clk 0:02:28.7]} 15... Ng6 {[%clk 0:01:41.4]} 16. Qh5 {[%clk
0:02:24.3]} 16... Kf8 {[%clk 0:01:37.6]} 17. Bxe4 {[%clk 0:02:03.4]} 17... fxe4
{[%clk 0:01:37]} 18. Rxe4 {[%clk 0:02:04.3]} 18... Re8 {[%clk 0:01:26.4]} 19.
Rae1 {[%clk 0:01:57.6]} 19... Rxe4 {[%clk 0:01:22.6]} 20. Rxe4 {[%clk
0:01:58.5]} 20... Bf5 {[%clk 0:01:13.9]} 21. Nd4 {[%clk 0:01:51.4]} 21... Qf7
{[%clk 0:00:39.8]} 22. Nxf5 {[%clk 0:01:43.1]} 22... Qxf5 {[%clk 0:00:39.2]} 23.
Re3 {[%clk 0:01:16.1]} 23... Bf4 {[%clk 0:00:09.5]} 24. Rf3 {[%clk 0:01:06.6]}
24... Ke8 {[%clk 0:00:09.7]} 25. Rxf4 {[%clk 0:00:43.8]} 25... Qxc2 {[%clk
0:00:03.9]} 26. h4 {[%clk 0:00:38.2]} 1-0

[Event "Late-Titled-Tuesday-Blitz-October-24-2023"]
[Site "Chess.com"]
[Date "2023.10.24"]
[Round "3"]
[White "dodoucb"]
[Black "RCone"]
[Result "1-0"]
[WhiteElo "2609"]
[BlackElo "2413"]
[TimeControl "180+1"]
[EndTime "14:28:58 PDT"]
[Termination "dodoucb won by checkmate"]

1. d4 {[%clk 0:03:00.9]} 1... g6 {[%clk 0:02:59.3]} 2. c4 {[%clk 0:03:01.5]}
2... Nf6 {[%clk 0:02:56.4]} 3. Nf3 {[%clk 0:03:02]} 3... Bg7 {[%clk 0:02:56.9]}
4. Nc3 {[%clk 0:03:01.8]} 4... O-O {[%clk 0:02:57.4]} 5. e4 {[%clk 0:03:01.7]}
5... d6 {[%clk 0:02:58]} 6. Be2 {[%clk 0:03:01.9]} 6... Na6 {[%clk 0:02:58.2]}
7. O-O {[%clk 0:03:01.6]} 7... e5 {[%clk 0:02:58]} 8. Be3 {[%clk 0:03:00.8]}
8... Qe7 {[%clk 0:02:56.8]} 9. d5 {[%clk 0:02:59.7]} 9... Nc5 {[%clk 0:02:56.5]}
10. Nd2 {[%clk 0:02:59.1]} 10... a5 {[%clk 0:02:56.6]} 11. f3 {[%clk 0:02:57.3]}
11... Nh5 {[%clk 0:02:56.3]} 12. Re1 {[%clk 0:02:51.5]} 12... f5 {[%clk
0:02:55.5]} 13. a3 {[%clk 0:02:47.4]} 13... f4 {[%clk 0:02:54.2]} 14. Bf2 {[%clk
0:02:46]} 14... Na6 {[%clk 0:02:48]} 15. b4 {[%clk 0:02:40.7]} 15... b6 {[%clk
0:02:47.7]} 16. Qb3 {[%clk 0:02:27.7]} 16... Kh8 {[%clk 0:02:29.3]} 17. Rac1
{[%clk 0:02:19.4]} 17... g5 {[%clk 0:02:08.3]} 18. Na4 {[%clk 0:01:41.7]} 18...
Nf6 {[%clk 0:01:50.2]} 19. c5 {[%clk 0:01:35.9]} 19... bxc5 {[%clk 0:01:45.7]}
20. bxc5 {[%clk 0:01:34.2]} 20... g4 {[%clk 0:01:30.6]} 21. cxd6 {[%clk
0:01:28.5]} 21... cxd6 {[%clk 0:01:31.5]} 22. Nb6 {[%clk 0:01:28.3]} 22... Rb8
{[%clk 0:01:30.3]} 23. Nxc8 {[%clk 0:01:25.2]} 23... Rfxc8 {[%clk 0:01:05.4]}
24. Rxc8+ {[%clk 0:01:23.2]} 24... Rxc8 {[%clk 0:01:06.3]} 25. Bxa6 {[%clk
0:01:22.2]} 25... Rg8 {[%clk 0:01:04]} 26. Qb7 {[%clk 0:01:17.8]} 26... Qe8
{[%clk 0:01:03.9]} 27. Rc1 {[%clk 0:01:04.9]} 27... Qg6 {[%clk 0:00:58.6]} 28.
Rc8 {[%clk 0:00:52.5]} 28... Bf8 {[%clk 0:00:59.1]} 29. Kf1 {[%clk 0:00:40]}
29... gxf3 {[%clk 0:00:50.2]} 30. gxf3 {[%clk 0:00:40.2]} 30... Qg2+ {[%clk
0:00:39.6]} 31. Ke2 {[%clk 0:00:40.1]} 31... Qxh2 {[%clk 0:00:40.3]} 32. Qf7
{[%clk 0:00:36.7]} 32... Nh5 {[%clk 0:00:35.8]} 33. Rxf8 {[%clk 0:00:30.3]}
33... Ng3+ {[%clk 0:00:35.4]} 34. Kd3 {[%clk 0:00:29.3]} 34... Qxf2 {[%clk
0:00:25.8]} 35. Rxg8# {[%clk 0:00:28.2]} 1-0

[Event "Late-Titled-Tuesday-Blitz-October-24-2023"]
[Site "Chess.com"]
[Date "2023.10.24"]
[Round "3"]
[White "The_Straightforward_Rook"]
[Black "boracilek"]
[Result "1-0"]
[WhiteElo "2578"]
[BlackElo "2320"]
[TimeControl "180+1"]
[EndTime "14:29:04 PDT"]
[Termination "The_Straightforward_Rook won by checkmate"]

1. d4 {[%clk 0:03:00.4]} 1... Nf6 {[%clk 0:02:59.4]} 2. c4 {[%clk 0:03:00]} 2...
c5 {[%clk 0:02:59.8]} 3. d5 {[%clk 0:02:59.9]} 3... e6 {[%clk 0:03:00.4]} 4. Nc3
{[%clk 0:02:59.1]} 4... exd5 {[%clk 0:03:00.8]} 5. cxd5 {[%clk 0:03:00]} 5... d6
{[%clk 0:03:01.4]} 6. Nf3 {[%clk 0:02:58.3]} 6... g6 {[%clk 0:03:00.5]} 7. Nd2
{[%clk 0:02:56.8]} 7... Na6 {[%clk 0:02:48.7]} 8. e4 {[%clk 0:02:55]} 8... Nc7
{[%clk 0:02:48.2]} 9. a4 {[%clk 0:02:51.9]} 9... b6 {[%clk 0:02:40.6]} 10. Bb5+
{[%clk 0:02:45.1]} 10... Bd7 {[%clk 0:02:38.7]} 11. O-O {[%clk 0:02:39.4]} 11...
a6 {[%clk 0:02:38.6]} 12. Be2 {[%clk 0:02:38.7]} 12... Rb8 {[%clk 0:02:31.4]}
13. f4 {[%clk 0:02:32.2]} 13... b5 {[%clk 0:02:00.7]} 14. e5 {[%clk 0:02:27.6]}
14... dxe5 {[%clk 0:01:55.1]} 15. fxe5 {[%clk 0:02:17.1]} 15... Nfxd5 {[%clk
0:01:54.1]} 16. Nde4 {[%clk 0:02:11]} 16... Be6 {[%clk 0:01:43]} 17. b4 {[%clk
0:02:06.2]} 17... Nxc3 {[%clk 0:01:32.7]} 18. Nxc3 {[%clk 0:02:01.5]} 18... Qxd1
{[%clk 0:01:31.6]} 19. Rxd1 {[%clk 0:01:55.3]} 19... cxb4 {[%clk 0:01:23.6]} 20.
Ne4 {[%clk 0:01:54.7]} 20... Be7 {[%clk 0:01:14.2]} 21. axb5 {[%clk 0:01:50.3]}
21... axb5 {[%clk 0:01:07.1]} 22. Bh6 {[%clk 0:01:49.4]} 22... b3 {[%clk
0:00:59.9]} 23. Nd6+ {[%clk 0:01:37.4]} 23... Bxd6 {[%clk 0:00:58.7]} 24. exd6
{[%clk 0:01:38.3]} 24... Nd5 {[%clk 0:00:57]} 25. Bf3 {[%clk 0:01:28.8]} 25...
Nc3 {[%clk 0:00:46.2]} 26. Bc6+ {[%clk 0:01:26.1]} 26... Bd7 {[%clk 0:00:42.5]}
27. Re1+ {[%clk 0:01:18.4]} 27... Kd8 {[%clk 0:00:41.7]} 28. Bg5+ {[%clk
0:01:07.6]} 28... Kc8 {[%clk 0:00:41.9]} 29. Bf3 {[%clk 0:00:59.6]} 29... b2
{[%clk 0:00:39.3]} 30. Ra7 {[%clk 0:00:59.7]} 30... Rb6 {[%clk 0:00:16.8]} 31.
Rc7+ {[%clk 0:00:54.9]} 31... Kb8 {[%clk 0:00:17.3]} 32. Rxc3 {[%clk 0:00:55.2]}
32... Rc8 {[%clk 0:00:15.4]} 33. Rb3 {[%clk 0:00:51.4]} 33... Be6 {[%clk
0:00:08.7]} 34. Rxb2 {[%clk 0:00:49.6]} 34... b4 {[%clk 0:00:09]} 35. Bf4 {[%clk
0:00:47.9]} 35... Rd8 {[%clk 0:00:04]} 36. Ra1 {[%clk 0:00:45.3]} 36... Rd7
{[%clk 0:00:03.5]} 37. Ra8# {[%clk 0:00:44.4]} 1-0

[Event "Late-Titled-Tuesday-Blitz-October-24-2023"]
[Site "Chess.com"]
[Date "2023.10.24"]
[Round "3"]
[White "C_K_G"]
[Black "Semetey"]
[Result "0-1"]
[WhiteElo "1927"]
[BlackElo "2525"]
[TimeControl "180+1"]
[EndTime "14:29:07 PDT"]
[Termination "Semetey won by resignation"]

1. e4 {[%clk 0:03:00.9]} 1... a6 {[%clk 0:02:59.3]} 2. Nf3 {[%clk 0:03:00.7]}
2... c6 {[%clk 0:02:59]} 3. d4 {[%clk 0:03:00.7]} 3... d5 {[%clk 0:02:59.6]} 4.
Bd3 {[%clk 0:02:59]} 4... Bg4 {[%clk 0:02:51.2]} 5. e5 {[%clk 0:02:53.1]} 5...
e6 {[%clk 0:02:50.6]} 6. c3 {[%clk 0:02:52.2]} 6... c5 {[%clk 0:02:49.3]} 7. O-O
{[%clk 0:02:49.2]} 7... Nc6 {[%clk 0:02:49.2]} 8. Be3 {[%clk 0:02:44.9]} 8...
Qb6 {[%clk 0:02:44.3]} 9. b3 {[%clk 0:02:22.8]} 9... cxd4 {[%clk 0:02:37.8]} 10.
cxd4 {[%clk 0:02:22]} 10... Nge7 {[%clk 0:02:32.6]} 11. Nc3 {[%clk 0:02:08.4]}
11... Ng6 {[%clk 0:02:32.4]} 12. Na4 {[%clk 0:02:05.5]} 12... Qa7 {[%clk
0:02:22.5]} 13. Rc1 {[%clk 0:02:03.2]} 13... Nh4 {[%clk 0:02:19.4]} 14. Be2
{[%clk 0:02:01.9]} 14... Nxf3+ {[%clk 0:02:16.1]} 15. Bxf3 {[%clk 0:02:01.4]}
15... Bxf3 {[%clk 0:02:16.4]} 16. Qxf3 {[%clk 0:02:00.3]} 16... Ba3 {[%clk
0:02:16.5]} 17. Rc3 {[%clk 0:01:24.7]} 17... O-O {[%clk 0:02:15.8]} 18. Qg4
{[%clk 0:01:17.3]} 18... Rfc8 {[%clk 0:02:13]} 19. Nc5 {[%clk 0:01:11.5]} 19...
Nxe5 {[%clk 0:02:05.5]} 20. dxe5 {[%clk 0:00:59.5]} 20... Bxc5 {[%clk
0:02:04.4]} 21. Rxc5 {[%clk 0:00:57]} 21... Rxc5 {[%clk 0:02:03.7]} 22. b4
{[%clk 0:00:56.7]} 22... Rc4 {[%clk 0:01:58.9]} 23. Qxc4 {[%clk 0:00:35.6]}
23... dxc4 {[%clk 0:01:40.7]} 24. Bxa7 {[%clk 0:00:35.3]} 24... Rxa7 {[%clk
0:01:41.6]} 25. Rd1 {[%clk 0:00:35]} 25... Ra8 {[%clk 0:01:41.8]} 26. Kf1 {[%clk
0:00:30]} 26... Rc8 {[%clk 0:01:29.5]} 27. Ke2 {[%clk 0:00:29]} 27... g5 {[%clk
0:01:25]} 28. Rd7 {[%clk 0:00:25.5]} 28... b5 {[%clk 0:01:24.2]} 29. Rd6 {[%clk
0:00:23]} 29... Ra8 {[%clk 0:01:18.7]} 30. g3 {[%clk 0:00:18.6]} 30... Kg7
{[%clk 0:01:15]} 31. Ke3 {[%clk 0:00:16.7]} 31... Kg6 {[%clk 0:01:14.7]} 32. Kd4
{[%clk 0:00:16.7]} 32... a5 {[%clk 0:01:13.5]} 33. a3 {[%clk 0:00:15.9]} 33...
axb4 {[%clk 0:01:13.5]} 34. axb4 {[%clk 0:00:16.1]} 34... Ra2 {[%clk 0:01:10.1]}
35. Rb6 {[%clk 0:00:13.3]} 35... Rd2+ {[%clk 0:00:55.1]} 36. Kc3 {[%clk
0:00:12.2]} 36... Rd3+ {[%clk 0:00:54.2]} 37. Kc2 {[%clk 0:00:12]} 37... Rd5
{[%clk 0:00:54.4]} 38. Rb7 {[%clk 0:00:11.8]} 38... Rxe5 {[%clk 0:00:53.8]} 39.
Rxf7 {[%clk 0:00:11.1]} 39... Kxf7 {[%clk 0:00:53]} 0-1